[Event "Is Bankasi Online Satranc Turn 17-18 YAS"]
[Site "T#646243Mustafa Kemal"]
[Date "2020.05.22"]
[Round "7"]
[White "Ataberkturkmen48"]
[Black "tunaonatnalban08"]
[Result "0-1"]
[WhiteElo "1903"]
[BlackElo "2038"]
[Annotator "NA RC"]
[PlyCount "128"]
[EventDate "2020.05.22"]
[EventType "swiss (blitz)"]
[TimeControl "180+2"]

1. e4 {[%emt 0:00:03]} Nc6 {[%emt 0:00:05]} 2. d4 {[%emt 0:00:05]} e5 {[%emt 0:00:02]} 3. dxe5 {[%emt 0:00:21]} Nxe5 {[%emt 0:00:02]} 4. f4 {[%emt 0:00:01]} Ng6 {[%emt 0:00:08]} 5. Nf3 {[%emt 0:00:01]} Bc5 {[%emt 0:00:06]} 6. Nc3 {[%emt 0:00:10]} d6 {[%emt 0:00:16]} 7. Bc4 {[%emt 0:00:02]} Nf6 {[%emt 0:00:06]} 8. Qe2 {[%emt 0:00:19]} O-O {[%emt 0:00:08]} 9. Be3 {[%emt 0:00:02]} Bxe3 {[%emt 0:00:04]} 10. Qxe3 {[%emt 0:00:00]} Qe7 {[%emt 0:00:08]} 11. O-O-O {[%emt 0:00:03]} c6 {[%emt 0:00:09]} 12. h4 {[%emt 0:00:17]} h5 {[%emt 0:00:09]} 13. Rhe1 {[%emt 0:00:35]} b5 {[%emt 0:00:11]} 14. Bb3 {[%emt 0:00:19]} a5 {[%emt 0:00:02]} 15. Ng5 {[%emt 0:01:02]} a4 {[%emt 0:00:06]} 16. Bxf7+ {[%emt 0:00:01]} Rxf7 {[%emt 0:00:01]} 17. Nxf7 {[%emt 0:00:00]} Qxf7 {[%emt 0:00:03]} 18. Rxd6 {[%emt 0:00:03]} b4 {[%emt 0:00:05]} 19. f5 {[%emt 0:00:06]} bxc3 {[%emt 0:00:06]} 20. fxg6 {[%emt 0:00:01]} cxb2+ {[%emt 0:00:01]} 21. Kb1 {[%emt 0:00:01]} Qe8 {[%emt 0:00:08]} 22. e5 {[%emt 0:00:03]} Ng4 {[%emt 0:00:06]} 23. Qg5 {[%emt 0:00:02]} Be6 {[%emt 0:00:06]} 24. Qxh5 {[%emt 0:00:02]} Nh6 {[%emt 0:00:04]} 25. Red1 {[%emt 0:00:04]} Bg4 {[%emt 0:00:06]} 26. Qg5 {[%emt 0:00:02]} Bxd1 {[%emt 0:00:01]} 27. Rxd1 {[%emt 0:00:00]} Qf8 {[%emt 0:00:11]} 28. e6 {[%emt 0:00:03]} Re8 {[%emt 0:00:03]} 29. Re1 {[%emt 0:00:03]} Qe7 {[%emt 0:00:06]} 30. Qxe7 {[%emt 0:00:04]} Rxe7 {[%emt 0:00:00]} 31. Kxb2 {[%emt 0:00:00]} Rb7+ {[%emt 0:00:13]} 32. Ka3 {[%emt 0:00:01]} Kf8 {[%emt 0:00:02]} 33. Kxa4 {[%emt 0:00:03]} Ke7 {[%emt 0:00:03]} 34. Re4 {[%emt 0:00:02]} Nf5 {[%emt 0:00:03]} 35. h5 {[%emt 0:00:02]} Ng3 {[%emt 0:00:04]} 36. Re5 {[%emt 0:00:03]} Rb8 {[%emt 0:00:01]} 37. c4 {[%emt 0:00:02]} Kd6 {[%emt 0:00:03]} 38. Rg5 {[%emt 0:00:03]} Ne4 {[%emt 0:00:01]} 39. Rg4 {[%emt 0:00:03]} Nc5+ {[%emt 0:00:03]} 40. Ka3 {[%emt 0:00:01]} Nxe6 {[%emt 0:00:02]} 41. h6 {[%emt 0:00:01]} gxh6 {[%emt 0:00:03]} 42. Rh4 {[%emt 0:00:00]} Rh8 {[%emt 0:00:10]} 43. Kb4 {[%emt 0:00:02]} c5+ {[%emt 0:00:02]} 44. Kc3 {[%emt 0:00:02]} Ke5 {[%emt 0:00:02]} 45. a4 {[%emt 0:00:02]} Kf6 {[%emt 0:00:03]} 46. a5 {[%emt 0:00:01]} Kxg6 {[%emt 0:00:04]} 47. Re4 {[%emt 0:00:02]} Kf5 {[%emt 0:00:02]} 48. Re1 {[%emt 0:00:02]} Ra8 {[%emt 0:00:04]} 49. g4+ {[%emt 0:00:02]} Kf6 {[%emt 0:00:04]} 50. Rf1+ {[%emt 0:00:01]} Kg6 {[%emt 0:00:06]} 51. Re1 {[%emt 0:00:02]} Nd4 {[%emt 0:00:03]} 52. Re5 {[%emt 0:00:04]} Rxa5 {[%emt 0:00:02]} 53. Kd3 {[%emt 0:00:02]} Kf6 {[%emt 0:00:06]} 54. Rh5 {[%emt 0:00:02]} Kg6 {[%emt 0:00:03]} 55. Ke4 {[%emt 0:00:01]} Ne6 {[%emt 0:00:04]} 56. Rd5 {[%emt 0:00:02]} Ng5+ {[%emt 0:00:02]} 57. Kf4 {[%emt 0:00:01]} Ne6+ {[%emt 0:00:04]} 58. Ke5 {[%emt 0:00:02]} Nd4 {[%emt 0:00:02]} 59. Kf4 {[%emt 0:00:03]} Ra4 {[%emt 0:00:04]} 60. Rd6+ {[%emt 0:00:01]} Kg7 {[%emt 0:00:03]} 61. Rd7+ {[%emt 0:00:04]} Kf6 {[%emt 0:00:01]} 62. Rd6+ {[%emt 0:00:01]} Ne6+ {[%emt 0:00:01]} 63. Ke4 {[%emt 0:00:01]} Rxc4+ {[%emt 0:00:01]} 64. Ke3 {[%emt 0:00:01]} Rxg4 {[%emt 0:00:01] Ataberkturkmen48 terk eder (Lag: Av=0.52s, max=1.2s)} 0-1

[Event "Is Bankasi Online Satranc Turn 17-18 YAS"]
[Site "T#646243Mustafa Kemal"]
[Date "2020.05.22"]
[Round "7"]
[White "Umuterdemgundu70"]
[Black "Hakansimsek70"]
[Result "1-0"]
[WhiteElo "1859"]
[BlackElo "1790"]
[Annotator "NA RC"]
[PlyCount "89"]
[EventDate "2020.05.22"]
[EventType "swiss (blitz)"]
[TimeControl "180+2"]

1. e4 {[%emt 0:00:03]} e5 {[%emt 0:00:01]} 2. Nf3 {[%emt 0:00:01]} Nc6 {[%emt 0:00:02]} 3. Bb5 {[%emt 0:00:01]} Nf6 {[%emt 0:00:02]} 4. O-O {[%emt 0:00:02]} Nxe4 {[%emt 0:00:02]} 5. Re1 {[%emt 0:00:01]} Nd6 {[%emt 0:00:01]} 6. Nxe5 {[%emt 0:00:01]} Nxe5 {[%emt 0:00:05]} 7. Rxe5+ {[%emt 0:00:00]} Be7 {[%emt 0:00:02]} 8. Bd3 {[%emt 0:00:07]} O-O {[%emt 0:00:06]} 9. Nc3 {[%emt 0:00:06]} Bf6 {[%emt 0:00:04]} 10. Re3 {[%emt 0:00:01]} Re8 {[%emt 0:00:05]} 11. Nd5 {[%emt 0:00:20]} c6 {[%emt 0:00:10]} 12. Nxf6+ {[%emt 0:00:45]} Qxf6 {[%emt 0:00:05]} 13. Rb1 {[%emt 0:00:12]} Rxe3 {[%emt 0:00:18]} 14. fxe3 {[%emt 0:00:00]} Nf5 {[%emt 0:00:05]} 15. b3 {[%emt 0:00:04]} d5 {[%emt 0:00:05]} 16. Bb2 {[%emt 0:00:01]} Qg5 {[%emt 0:00:08]} 17. Qf3 {[%emt 0:00:06]} Nh4 {[%emt 0:00:28]} 18. Qf2 {[%emt 0:00:02]} Bh3 {[%emt 0:00:07]} 19. g3 {[%emt 0:00:24]} Re8 {[%emt 0:00:28]} 20. Re1 {[%emt 0:00:44]} Ng6 {[%emt 0:00:22]} 21. e4 {[%emt 0:00:06]} dxe4 {[%emt 0:00:07]} 22. Rxe4 {[%emt 0:00:11]} Rxe4 {[%emt 0:00:12]} 23. Bxe4 {[%emt 0:00:00]} h5 {[%emt 0:00:11]} 24. Qd4 {[%emt 0:00:17]} Nf4 {[%emt 0:00:11]} 25. Qd6 {[%emt 0:00:08]} Ne6 {[%emt 0:00:17] '} 26. Qe5 {[%emt 0:00:05]} Qxe5 {[%emt 0:00:02]} 27. Bxe5 {[%emt 0:00:00]} f6 {[%emt 0:00:02]} 28. Bc3 {[%emt 0:00:02]} Nc5 {[%emt 0:00:02]} 29. Bf3 {[%emt 0:00:01]} Bg4 {[%emt 0:00:05]} 30. Bxg4 {[%emt 0:00:01]} hxg4 {[%emt 0:00:00]} 31. Bd4 {[%emt 0:00:01]} Ne4 {[%emt 0:00:03]} 32. d3 {[%emt 0:00:01]} Nd6 {[%emt 0:00:03]} 33. Bxa7 {[%emt 0:00:01]} Nb5 {[%emt 0:00:01]} 34. Be3 {[%emt 0:00:08]} Kf7 {[%emt 0:00:02]} 35. a4 {[%emt 0:00:01]} Nc3 {[%emt 0:00:02]} 36. Kf2 {[%emt 0:00:01]} Ke6 {[%emt 0:00:02]} 37. Bd4 {[%emt 0:00:01]} f5 {[%emt 0:00:02]} 38. Bxc3 {[%emt 0:00:01]} Kd5 {[%emt 0:00:03]} 39. Bxg7 {[%emt 0:00:02]} b5 {[%emt 0:00:01]} 40. a5 {[%emt 0:00:01]} b4 {[%emt 0:00:02]} 41. a6 {[%emt 0:00:01]} f4 {[%emt 0:00:00]} 42. a7 {[%emt 0:00:01]} fxg3+ {[%emt 0:00:00]} 43. hxg3 {[%emt 0:00:01]} c5 {[%emt 0:00:01]} 44. a8=Q+ {[%emt 0:00:00]} Kd6 {[%emt 0:00:03]} 45. Qd8+ {[%emt 0:00:02] Hakansimsek70 terk eder (Lag: Av=0.31s, max=0.8s)} 1-0

[Event "Is Bankasi Online Satranc Turn 17-18 YAS"]
[Site "T#646243Mustafa Kemal"]
[Date "2020.05.22"]
[Round "7"]
[White "Dogukangureke78"]
[Black "Alparslanisik80"]
[Result "0-1"]
[WhiteElo "1823"]
[BlackElo "1887"]
[Annotator "NA RC"]
[PlyCount "142"]
[EventDate "2020.05.22"]
[EventType "swiss (blitz)"]
[TimeControl "180+2"]

1. d4 {[%emt 0:00:03]} Nf6 {[%emt 0:00:02]} 2. c4 {[%emt 0:00:01]} g6 {[%emt 0:00:01]} 3. g3 {[%emt 0:00:02]} c6 {[%emt 0:00:02]} 4. Nf3 {[%emt 0:00:02]} d5 {[%emt 0:00:01]} 5. Bg2 {[%emt 0:00:01]} dxc4 {[%emt 0:00:04]} 6. O-O {[%emt 0:00:05]} Bg7 {[%emt 0:00:02]} 7. Ne5 {[%emt 0:00:03]} O-O {[%emt 0:00:04]} 8. Nxc4 {[%emt 0:00:03]} Be6 {[%emt 0:00:07]} 9. Ne5 {[%emt 0:00:06]} Nbd7 {[%emt 0:00:02]} 10. Nxd7 {[%emt 0:00:09]} Qxd7 {[%emt 0:00:02]} 11. Nc3 {[%emt 0:00:04]} Rfd8 {[%emt 0:00:03]} 12. e3 {[%emt 0:00:08]} c5 {[%emt 0:00:02]} 13. dxc5 {[%emt 0:00:05]} Qc7 {[%emt 0:00:01]} 14. Qa4 {[%emt 0:00:18]} Nd7 {[%emt 0:00:12]} 15. Ne4 {[%emt 0:00:13]} Nxc5 {[%emt 0:00:23]} 16. Nxc5 {[%emt 0:00:02]} Qxc5 {[%emt 0:00:00]} 17. e4 {[%emt 0:00:11]} b5 {[%emt 0:00:08]} 18. Qa5 {[%emt 0:00:13]} Bd4 {[%emt 0:00:02]} 19. Bf4 {[%emt 0:00:15]} Bxb2 {[%emt 0:00:34]} 20. Rab1 {[%emt 0:00:03]} Bc3 {[%emt 0:00:01]} 21. Qxb5 {[%emt 0:00:04]} Qxb5 {[%emt 0:00:01]} 22. Rxb5 {[%emt 0:00:02]} Bc4 {[%emt 0:00:01]} 23. Rc5 {[%emt 0:00:33]} Bxf1 {[%emt 0:00:03]} 24. Rxc3 {[%emt 0:00:02]} Bxg2 {[%emt 0:00:03]} 25. Kxg2 {[%emt 0:00:00]} Rac8 {[%emt 0:00:03]} 26. Ra3 {[%emt 0:00:02]} Rd7 {[%emt 0:00:01]} 27. h4 {[%emt 0:00:05]} f6 {[%emt 0:00:04]} 28. Be3 {[%emt 0:00:01]} Rcc7 {[%emt 0:00:05]} 29. Bf4 {[%emt 0:00:02]} Rb7 {[%emt 0:00:02]} 30. Be3 {[%emt 0:00:02]} Kf8 {[%emt 0:00:06]} 31. Kf3 {[%emt 0:00:03]} Kf7 {[%emt 0:00:01]} 32. Ra5 {[%emt 0:00:06]} h5 {[%emt 0:00:07]} 33. a3 {[%emt 0:00:15]} Rd3 {[%emt 0:00:15]} 34. Ke2 {[%emt 0:00:06]} Rdd7 {[%emt 0:00:12]} 35. Kf3 {[%emt 0:00:02]} Rd8 {[%emt 0:00:11]} 36. Ra6 {[%emt 0:00:14]} Rd6 {[%emt 0:00:04]} 37. Ra5 {[%emt 0:00:03]} a6 {[%emt 0:00:02]} 38. Bc5 {[%emt 0:00:11]} Rc6 {[%emt 0:00:02]} 39. Be3 {[%emt 0:00:03]} Rb5 {[%emt 0:00:03]} 40. Ra4 {[%emt 0:00:01]} Rb3 {[%emt 0:00:05]} 41. Ra5 {[%emt 0:00:05]} e5 {[%emt 0:00:02]} 42. Ke2 {[%emt 0:00:05]} Ke6 {[%emt 0:00:01]} 43. Kf3 {[%emt 0:00:01]} f5 {[%emt 0:00:01]} 44. exf5+ {[%emt 0:00:06]} gxf5 {[%emt 0:00:00]} 45. Kg2 {[%emt 0:00:01]} Rb5 {[%emt 0:00:05]} 46. Ra4 {[%emt 0:00:01]} a5 {[%emt 0:00:01]} 47. Bd2 {[%emt 0:00:02]} Rcc5 {[%emt 0:00:01]} 48. Bg5 {[%emt 0:00:03]} Rc2 {[%emt 0:00:08]} 49. Be3 {[%emt 0:00:02]} Rb3 {[%emt 0:00:11]} 50. Bg5 {[%emt 0:00:01]} Rc5 {[%emt 0:00:20]} 51. Be3 {[%emt 0:00:02]} Rd5 {[%emt 0:00:01]} 52. Bg5 {[%emt 0:00:01]} Rbd3 {[%emt 0:00:01]} 53. Be3 {[%emt 0:00:03]} Rb5 {[%emt 0:00:01]} 54. Bg5 {[%emt 0:00:02]} Rc5 {[%emt 0:00:01]} 55. Be3 {[%emt 0:00:03]} Rcd5 {[%emt 0:00:01]} 56. Bg5 {[%emt 0:00:01]} R3d4 {[%emt 0:00:01]} 57. Rxd4 {[%emt 0:00:04]} Rxd4 {[%emt 0:00:01]} 58. Bh6 {[%emt 0:00:04]} Kf7 {[%emt 0:00:08]} 59. Be3 {[%emt 0:00:03]} Rc4 {[%emt 0:00:03]} 60. Kf1 {[%emt 0:00:03]} Rc3 {[%emt 0:00:02]} 61. Kg2 {[%emt 0:00:02]} Rxa3 {[%emt 0:00:02]} 62. Bc5 {[%emt 0:00:00]} Rb3 {[%emt 0:00:03]} 63. Bd6 {[%emt 0:00:00]} Ke6 {[%emt 0:00:02]} 64. Bf8 {[%emt 0:00:02]} a4 {[%emt 0:00:01]} 65. Kf1 {[%emt 0:00:03]} a3 {[%emt 0:00:00]} 66. Kg2 {[%emt 0:00:02]} a2 {[%emt 0:00:02]} 67. Bg7 {[%emt 0:00:00]} a1=Q {[%emt 0:00:01]} 68. Bxe5 {[%emt 0:00:00]} Kxe5 {[%emt 0:00:00]} 69. g4 {[%emt 0:00:01]} fxg4 {[%emt 0:00:06]} 70. f4+ {[%emt 0:00:01]} Kxf4 {[%emt 0:00:03]} 71. Kh2 {[%emt 0:00:01]} Rb2# {[%emt 0:00:01] (Lag: Av=1.03s, max=2.1s)} 0-1

[Event "Is Bankasi Online Satranc Turn 17-18 YAS"]
[Site "T#646243Mustafa Kemal"]
[Date "2020.05.22"]
[Round "7"]
[White "Kayrakamer68"]
[Black "Omeramirakdag30"]
[Result "0-1"]
[WhiteElo "1794"]
[BlackElo "1815"]
[Annotator "NA RC"]
[PlyCount "106"]
[EventDate "2020.05.22"]
[EventType "swiss (blitz)"]
[TimeControl "180+2"]

1. Nc3 {[%emt 0:00:09]} d5 {[%emt 0:00:07]} 2. e4 {[%emt 0:00:01]} d4 {[%emt 0:00:01]} 3. Nb1 {[%emt 0:00:01]} c5 {[%emt 0:00:08]} 4. d3 {[%emt 0:00:10]} Nc6 {[%emt 0:00:01]} 5. g3 {[%emt 0:00:01]} e5 {[%emt 0:00:13]} 6. Bg2 {[%emt 0:00:01]} Be6 {[%emt 0:00:03]} 7. Ne2 {[%emt 0:00:02]} Qd7 {[%emt 0:00:04]} 8. O-O {[%emt 0:00:13]} h5 {[%emt 0:00:18]} 9. f4 {[%emt 0:00:05]} Bg4 {[%emt 0:00:04]} 10. Qe1 {[%emt 0:00:17]} O-O-O {[%emt 0:00:08]} 11. a3 {[%emt 0:00:11]} Bh3 {[%emt 0:00:06]} 12. f5 {[%emt 0:00:16]} Bxg2 {[%emt 0:00:03]} 13. Kxg2 {[%emt 0:00:00]} Nf6 {[%emt 0:00:02]} 14. h3 {[%emt 0:00:08]} Be7 {[%emt 0:00:03]} 15. Bd2 {[%emt 0:00:05]} g6 {[%emt 0:00:01]} 16. b4 {[%emt 0:00:03]} gxf5 {[%emt 0:00:04]} 17. Rxf5 {[%emt 0:00:03]} c4 {[%emt 0:00:09]} 18. b5 {[%emt 0:00:09]} Nb8 {[%emt 0:00:10]} 19. Bg5 {[%emt 0:00:01]} Qe6 {[%emt 0:00:13]} 20. Nd2 {[%emt 0:00:06]} c3 {[%emt 0:00:05]} 21. Nc4 {[%emt 0:00:01]} Nbd7 {[%emt 0:00:01]} 22. Qf2 {[%emt 0:00:12]} Rdg8 {[%emt 0:00:05]} 23. a4 {[%emt 0:00:11]} Nxe4 {[%emt 0:00:09]} 24. dxe4 {[%emt 0:00:05]} Bxg5 {[%emt 0:00:02]} 25. Na5 {[%emt 0:00:40]} Be3 {[%emt 0:00:07]} 26. Qf3 {[%emt 0:00:01]} f6 {[%emt 0:00:02]} 27. Nb3 {[%emt 0:00:15]} Rg5 {[%emt 0:00:11]} 28. Rxg5 {[%emt 0:00:09]} fxg5 {[%emt 0:00:00]} 29. Rf1 {[%emt 0:00:10]} Rf8 {[%emt 0:00:01]} 30. Qxf8+ {[%emt 0:00:12]} Nxf8 {[%emt 0:00:00]} 31. Rxf8+ {[%emt 0:00:01]} Kc7 {[%emt 0:00:00]} 32. Rf3 {[%emt 0:00:03]} g4 {[%emt 0:00:12] '} 33. hxg4 {[%emt 0:00:01]} hxg4 {[%emt 0:00:00]} 34. Rf5 {[%emt 0:00:01]} d3 {[%emt 0:00:07]} 35. Nxc3 {[%emt 0:00:02]} d2 {[%emt 0:00:20]} 36. Nxd2 {[%emt 0:00:01]} Bxd2 {[%emt 0:00:00]} 37. Nd5+ {[%emt 0:00:00]} Kd7 {[%emt 0:00:09]} 38. Rf6 {[%emt 0:00:05]} Qe8 {[%emt 0:00:09]} 39. Rf5 {[%emt 0:00:04]} Qh8 {[%emt 0:00:04]} 40. Nf6+ {[%emt 0:00:03]} Ke6 {[%emt 0:00:04]} 41. Nxg4 {[%emt 0:00:01]} Bc3 {[%emt 0:00:04]} 42. Rg5 {[%emt 0:00:04]} Qd8 {[%emt 0:00:04]} 43. Rg6+ {[%emt 0:00:01]} Kf7 {[%emt 0:00:02]} 44. Rh6 {[%emt 0:00:02]} Qd2+ {[%emt 0:00:01]} 45. Kh3 {[%emt 0:00:00]} Kg7 {[%emt 0:00:09]} 46. Re6 {[%emt 0:00:02]} Qxc2 {[%emt 0:00:03]} 47. Re7+ {[%emt 0:00:01]} Kf8 {[%emt 0:00:02]} 48. Rd7 {[%emt 0:00:04]} Qxe4 {[%emt 0:00:02]} 49. Kh4 {[%emt 0:00:03]} Qxa4 {[%emt 0:00:06]} 50. Kg5 {[%emt 0:00:02]} Qxb5 {[%emt 0:00:02]} 51. Nf6 {[%emt 0:00:01]} e4+ {[%emt 0:00:01]} 52. Rd5 {[%emt 0:00:04]} Bxf6+ {[%emt 0:00:01]} 53. Kxf6 {[%emt 0:00:00]} Qxd5 {[%emt 0:00:01] Kayrakamer68 resigns (Lag: Av=0.55s, max=1.0s)} 0-1

[Event "Is Bankasi Online Satranc Turn 17-18 YAS"]
[Site "T#646243Mustafa Kemal"]
[Date "2020.05.22"]
[Round "7"]
[White "Emrekocakaplan04"]
[Black "Canberkgiray40"]
[Result "1/2-1/2"]
[WhiteElo "1776"]
[BlackElo "1776"]
[Annotator "NA RC"]
[PlyCount "129"]
[EventDate "2020.05.22"]
[EventType "swiss (blitz)"]
[TimeControl "180+2"]

1. d4 {[%emt 0:00:02]} Nf6 {[%emt 0:00:02]} 2. c4 {[%emt 0:00:01]} g6 {[%emt 0:00:02]} 3. Nf3 {[%emt 0:00:01]} Bg7 {[%emt 0:00:02]} 4. g3 {[%emt 0:00:01]} O-O {[%emt 0:00:02]} 5. Bg2 {[%emt 0:00:01]} d6 {[%emt 0:00:00]} 6. O-O {[%emt 0:00:01]} c6 {[%emt 0:00:02]} 7. b3 {[%emt 0:00:10]} Qc7 {[%emt 0:00:05]} 8. Bb2 {[%emt 0:00:01]} Nbd7 {[%emt 0:00:04]} 9. Nbd2 {[%emt 0:00:15]} e5 {[%emt 0:00:02]} 10. Qc2 {[%emt 0:00:17]} Re8 {[%emt 0:00:15]} 11. e3 {[%emt 0:00:23]} Nf8 {[%emt 0:00:24]} 12. Rad1 {[%emt 0:00:42]} Bf5 {[%emt 0:00:20]} 13. e4 {[%emt 0:00:04]} Bg4 {[%emt 0:00:10]} 14. dxe5 {[%emt 0:00:15]} dxe5 {[%emt 0:00:05]} 15. h3 {[%emt 0:00:01]} Bxf3 {[%emt 0:00:07]} 16. Nxf3 {[%emt 0:00:01]} N6d7 {[%emt 0:00:16]} 17. Rd2 {[%emt 0:00:19]} Rad8 {[%emt 0:00:09]} 18. Rfd1 {[%emt 0:00:03]} Nc5 {[%emt 0:00:07]} 19. Rxd8 {[%emt 0:00:02]} Rxd8 {[%emt 0:00:04]} 20. Rxd8 {[%emt 0:00:00]} Qxd8 {[%emt 0:00:03]} 21. Bxe5 {[%emt 0:00:03]} Bxe5 {[%emt 0:00:08]} 22. Nxe5 {[%emt 0:00:01]} Qd4 {[%emt 0:00:04]} 23. Ng4 {[%emt 0:00:23]} h5 {[%emt 0:00:12]} 24. Ne3 {[%emt 0:00:03]} Nfd7 {[%emt 0:00:09]} 25. Qd1 {[%emt 0:00:18]} Qxd1+ {[%emt 0:00:06]} 26. Nxd1 {[%emt 0:00:00]} Ne5 {[%emt 0:00:03]} 27. Kf1 {[%emt 0:00:04]} Ncd3 {[%emt 0:00:07]} 28. Ke2 {[%emt 0:00:03]} Nc1+ {[%emt 0:00:02]} 29. Kd2 {[%emt 0:00:06]} Nxa2 {[%emt 0:00:02]} 30. f4 {[%emt 0:00:05]} Nd7 {[%emt 0:00:06]} 31. Nc3 {[%emt 0:00:08]} Nb4 {[%emt 0:00:09]} 32. e5 {[%emt 0:00:01]} Kf8 {[%emt 0:00:04]} 33. Ne4 {[%emt 0:00:01]} Ke7 {[%emt 0:00:08]} 34. Kc3 {[%emt 0:00:02]} Na6 {[%emt 0:00:04]} 35. b4 {[%emt 0:00:04]} Nc7 {[%emt 0:00:02]} 36. Nd6 {[%emt 0:00:01]} c5 {[%emt 0:00:07]} 37. Nxb7 {[%emt 0:00:03]} cxb4+ {[%emt 0:00:01]} 38. Kxb4 {[%emt 0:00:00]} f6 {[%emt 0:00:03]} 39. exf6+ {[%emt 0:00:01]} Nxf6 {[%emt 0:00:02]} 40. Nc5 {[%emt 0:00:02]} Nd7 {[%emt 0:00:03]} 41. Nxd7 {[%emt 0:00:03]} Kxd7 {[%emt 0:00:01]} 42. Be4 {[%emt 0:00:01]} Ne6 {[%emt 0:00:05]} 43. Bxg6 {[%emt 0:00:02]} h4 {[%emt 0:00:01]} 44. gxh4 {[%emt 0:00:06]} Nxf4 {[%emt 0:00:02]} 45. h5 {[%emt 0:00:01]} Ke6 {[%emt 0:00:07]} 46. Kb5 {[%emt 0:00:04]} Nxh3 {[%emt 0:00:01]} 47. Ka6 {[%emt 0:00:02]} Nf4 {[%emt 0:00:01]} 48. Kxa7 {[%emt 0:00:02]} Nd3 {[%emt 0:00:01]} 49. Kb6 {[%emt 0:00:01]} Ne5 {[%emt 0:00:02]} 50. c5 {[%emt 0:00:02]} Nd7+ {[%emt 0:00:01]} 51. Kc6 {[%emt 0:00:05]} Nxc5 {[%emt 0:00:01]} 52. Kxc5 {[%emt 0:00:00]} Kf6 {[%emt 0:00:01]} 53. Kd6 {[%emt 0:00:01]} Kg7 {[%emt 0:00:01]} 54. Ke6 {[%emt 0:00:01]} Kh8 {[%emt 0:00:02]} 55. Kf6 {[%emt 0:00:02]} Kg8 {[%emt 0:00:01]} 56. Bb1 {[%emt 0:00:02]} Kh8 {[%emt 0:00:01] Canberkgiray40 beraberlik teklif ediyor} 57. Kg5 {[%emt 0:00:04]} Kg7 {[%emt 0:00:01]} 58. Bg6 {[%emt 0:00:02]} Kh8 {[%emt 0:00:02]} 59. Bf7 {[%emt 0:00:03]} Kg7 {[%emt 0:00:01]} 60. Bb3 {[%emt 0:00:02]} Kh8 {[%emt 0:00:01]} 61. Kf6 {[%emt 0:00:02]} Kh7 {[%emt 0:00:02]} 62. Bf7 {[%emt 0:00:01]} Kh6 {[%emt 0:00:02]} 63. Ke7 {[%emt 0:00:06]} Kg7 {[%emt 0:00:03]} 64. Bg6 {[%emt 0:00:01]} Kh8 {[%emt 0:00:02]} 65. Kf8 {[%emt 0:00:00] (Lag: Av=0.41s, max=1.0s)} 1/2-1/2

[Event "Is Bankasi Online Satranc Turn 17-18 YAS"]
[Site "T#646243Mustafa Kemal"]
[Date "2020.05.22"]
[Round "7"]
[White "ahmetburakgurs66"]
[Black "Ibrahimisik76"]
[Result "1-0"]
[WhiteElo "1677"]
[BlackElo "1563"]
[Annotator "NA RC"]
[PlyCount "43"]
[EventDate "2020.05.22"]
[EventType "swiss (blitz)"]
[TimeControl "180+2"]

1. e4 {[%emt 0:00:03]} e5 {[%emt 0:00:02]} 2. Nf3 {[%emt 0:00:01]} Nc6 {[%emt 0:00:02]} 3. d4 {[%emt 0:00:01]} exd4 {[%emt 0:00:02]} 4. Bc4 {[%emt 0:00:01]} d6 {[%emt 0:00:02]} 5. O-O {[%emt 0:00:03]} Be6 {[%emt 0:00:02]} 6. Bxe6 {[%emt 0:00:03]} fxe6 {[%emt 0:00:00]} 7. Nxd4 {[%emt 0:00:01]} Nxd4 {[%emt 0:00:05]} 8. Qxd4 {[%emt 0:00:01]} e5 {[%emt 0:00:01]} 9. Qd1 {[%emt 0:00:01]} Nf6 {[%emt 0:00:02]} 10. Bg5 {[%emt 0:00:00]} Be7 {[%emt 0:00:01]} 11. Nc3 {[%emt 0:00:01]} h6 {[%emt 0:00:02]} 12. Bxf6 {[%emt 0:00:01]} Bxf6 {[%emt 0:00:02]} 13. Qh5+ {[%emt 0:00:04]} Ke7 {[%emt 0:00:05]} 14. Nd5+ {[%emt 0:00:01]} Kd7 {[%emt 0:00:07]} 15. c4 {[%emt 0:00:16]} c6 {[%emt 0:00:01]} 16. Qf7+ {[%emt 0:00:02]} Kc8 {[%emt 0:00:03]} 17. Nxf6 {[%emt 0:00:02]} gxf6 {[%emt 0:00:06]} 18. Rad1 {[%emt 0:00:03]} Qc7 {[%emt 0:00:26]} 19. Qe6+ {[%emt 0:00:03]} Qd7 {[%emt 0:00:05]} 20. Qxf6 {[%emt 0:00:02]} Kc7 {[%emt 0:00:03]} 21. c5 {[%emt 0:00:05]} d5 {[%emt 0:00:06]} 22. Qxe5+ {[%emt 0:00:03] Ibrahimisik76 terk eder (Lag: Av=0.69s, max=0.8s)} 1-0

[Event "Is Bankasi Online Satranc Turn 17-18 YAS"]
[Site "T#646243Mustafa Kemal"]
[Date "2020.05.22"]
[Round "7"]
[White "merttosun42"]
[Black "Mustafaberkayb82"]
[Result "0-1"]
[WhiteElo "1657"]
[BlackElo "1661"]
[Annotator "NA RC"]
[PlyCount "66"]
[EventDate "2020.05.22"]
[EventType "swiss (blitz)"]
[TimeControl "180+2"]

1. e4 {[%emt 0:00:03]} e5 {[%emt 0:00:01]} 2. Nf3 {[%emt 0:00:01]} Nc6 {[%emt 0:00:01]} 3. Bc4 {[%emt 0:00:01]} Nf6 {[%emt 0:00:01]} 4. d3 {[%emt 0:00:01]} Bc5 {[%emt 0:00:06]} 5. O-O {[%emt 0:00:03]} O-O {[%emt 0:00:01]} 6. Nc3 {[%emt 0:00:02]} d6 {[%emt 0:00:05]} 7. Bg5 {[%emt 0:00:02]} Bg4 {[%emt 0:00:03]} 8. h3 {[%emt 0:00:06]} Bxf3 {[%emt 0:00:12]} 9. Qxf3 {[%emt 0:00:03]} Nd4 {[%emt 0:00:02]} 10. Qd1 {[%emt 0:00:02]} c6 {[%emt 0:00:16]} 11. Na4 {[%emt 0:00:17]} Bb6 {[%emt 0:00:23]} 12. Nxb6 {[%emt 0:00:05]} axb6 {[%emt 0:00:00]} 13. f4 {[%emt 0:00:22]} h6 {[%emt 0:00:11]} 14. fxe5 {[%emt 0:00:15]} dxe5 {[%emt 0:00:18]} 15. Bxf6 {[%emt 0:00:06]} gxf6 {[%emt 0:00:03]} 16. c3 {[%emt 0:00:15]} Ne6 {[%emt 0:00:04]} 17. Bxe6 {[%emt 0:00:31]} fxe6 {[%emt 0:00:00]} 18. Rf3 {[%emt 0:00:04]} Kh7 {[%emt 0:00:14]} 19. Qb3 {[%emt 0:00:10]} Qd6 {[%emt 0:00:48]} 20. Qxb6 {[%emt 0:00:06]} f5 {[%emt 0:00:33]} 21. Qxb7+ {[%emt 0:00:04]} Kh8 {[%emt 0:00:13]} 22. a3 {[%emt 0:00:16]} Rab8 {[%emt 0:00:02]} 23. Qa6 {[%emt 0:00:08]} Rxb2 {[%emt 0:00:01]} 24. Qc4 {[%emt 0:00:18]} Rg8 {[%emt 0:00:02]} 25. Rf2 {[%emt 0:00:16]} Rxf2 {[%emt 0:00:04]} 26. Kxf2 {[%emt 0:00:01]} f4 {[%emt 0:00:02]} 27. a4 {[%emt 0:00:04]} Qf8 {[%emt 0:00:03]} 28. Qxe6 {[%emt 0:00:03]} Qg7 {[%emt 0:00:01]} 29. Qg4 {[%emt 0:00:05]} Qa7+ {[%emt 0:00:03]} 30. d4 {[%emt 0:00:08]} Rxg4 {[%emt 0:00:01]} 31. hxg4 {[%emt 0:00:01]} exd4 {[%emt 0:00:00]} 32. cxd4 {[%emt 0:00:01]} Qxd4+ {[%emt 0:00:00]} 33. Ke2 {[%emt 0:00:01]} Qxa1 {[%emt 0:00:00] Zaman (Lag: Av=0.49s, max=0.7s)} 0-1